Cogmind - Beta 13 @@@ ROGUE MODE // 2024.06.21 @ 13:02:54 Player: Jason Result: Destroyed by D-53 Grenadier with Mini Grenade Launcher Performance ------------- Evolutions (0) 0 Regions Visited (2) 400 Robots Destroyed (18) 90 Value Destroyed (325) 325 Prototype IDs (2) 40 Alien Tech Used (0) 0 Bonus (0) 0 TOTAL SCORE: 855 Bonus ------- None Cogmind --------- Core Integrity 0/250 Matter 282/300 Energy 84/100 System Corruption 0% Temperature Cool (0) Movement Rolling (115) Ox1 Location -10/Mines Parts ------- > --- POWER (1) -------- (None) > --- PROPULSION (2) --- Compact Wheel > --- UTILITY (2) ------ Medium Storage Unit Medium Armor Plating > --- WEAPON (2) ------- Heavy Assault Rifle > --- INVENTORY (10) --- Heat Sink Large Storage Unit Structural Scanner Improved Terrain Scanner Heavy Assault Rifle Rocket Launcher Hammer Peak State ------------ > --- POWER ------------ Light Nuclear Core > --- PROPULSION ------- Aluminum Leg Aluminum Leg > --- UTILITY ---------- Medium Storage Unit Structural Scanner > --- WEAPON ----------- EM Pulse Gun Heavy Assault Rifle > --- INVENTORY -------- Ion Engine Light Ion Engine Compact Wheel Heat Sink Large Storage Unit Improved Terrain Scanner Medium Armor Plating Medium Armor Plating Grenade Launcher Hammer [Rating: 11] Favorites ----------- Power Light Nuclear Core Engine Ion Engine Power Core Light Nuclear Core Propulsion Aluminum Leg Leg Aluminum Leg Wheel Compact Wheel Utility Structural Scanner Device Structural Scanner Storage Medium Storage Unit Protection Medium Armor Plating Weapon EM Pulse Gun Energy Gun EM Pulse Gun Ballistic Gun Light Assault Rifle Launcher Grenade Launcher Build | -11 -10 -10 ------- Run | Yrd Mat Min Slots Evolved . | . . . Power . | . . . Propulsion . | . . . Utility . | . . . Weapon . | . . . Parts Attached 20 | 8 6 6 Power 4 | 2 1 1 Engine 3 | 2 . 1 Core 1 | . 1 . Reactor . | . . . Propulsion 4 | 2 1 1 Treads . | . . . Leg 3 | 2 1 . Wheel 1 | . . 1 Hover . | . . . Flight . | . . . Utility 7 | 2 3 2 Device 3 | 1 2 . Storage 2 | 1 1 . Processor . | . . . Hackware . | . . . Protection 2 | . . 2 Artifact . | . . . Weapon 5 | 2 1 2 Energy Gun 1 | 1 . . Energy Cannon . | . . . Ballistic Gun 3 | 1 1 1 Ballistic Cannon . | . . . Launcher 1 | . . 1 Special Weapon . | . . . Impact Weapon . | . . . Slashing Weapon . | . . . Piercing Weapon . | . . . Special Melee Weapon . | . . . Unidentified Prototypes . | . . . Parts Lost 7 | . . 7 Power 2 | . . 2 Propulsion 2 | . . 2 Utility 1 | . . 1 Weapon 2 | . . 2 Highest Loss Streak 5 | . . 5 To Critical Strikes . | . . . Average Slot Usage (%) 99 | . 99 98 Engine 4 | . 1 13 Core 9 | . 12 . Leg 28 | . 28 28 Device 10 | . 13 . Storage 14 | . 14 14 Protection 3 | . . 13 Energy Gun 10 | . 14 . Ballistic Gun 17 | . 14 25 Naked Turns . | . . . Heaviest Build 28 | 14 21 28 Greatest Support 20 | 20 20 20 Greatest Overweight (x) 1 | 1 1 1 Average Overweight (x) . | . . . Largest Inventory Capacity 10 | 8 10 10 Average Capacity 9 | 7 9 10 Most Carried 10 | 6 10 10 Average Carried 8 | 4 9 8 Final Capacity 10 | 8 10 10 Final Carried 10 | 6 10 7 Class Distribution -------------------- 100% | Mutant Dominant Class ---------------- Mutant | -10/Materials Mutant | -10/Mines Resources | -11 -10 -10 ----------- Run | Yrd Mat Min Matter Collected 439 | 287 81 71 Remotely . | . . . Salvage Created 545 | 201 240 104 Parts 34 | 12 20 2 Haulers Intercepted . | . . . Recyclers Shooed . | . . . Parts Field Recycled . | . . . Retrieved Matter . | . . . Parts Self-Destructed . | . . . Prevented . | . . . Kills | -11 -10 -10 ------- Run | Yrd Mat Min Combat Hostiles Destroyed 12 | . 10 2 Guns 12 | . 10 2 Classes Destroyed 5 | 3 2 . Worker 1 | 1 . . Tunneler 4 | 4 . . Recycler 1 | 1 . . Swarmer 6 | . 6 . Grunt 6 | . 4 2 Best Kill Streak 4 | 4 3 2 Combat Bots Only 3 | . 3 2 Max Kills in Single Turn 2 | 2 1 1 Gunslinging . | . . . Exploded . | . . . Melee . | . . . Uniques/NPCs Destroyed . | . . . Combat | -11 -10 -10 -------- Run | Yrd Mat Min Hostile Shots Fired 87 | . 30 57 Missed 26 | . 7 19 Damage Taken 1173 | 38 230 905 Core 276 | . 96 180 Absorbed by Shields . | . . . Core Remaining (%) 100 | 100 . . Volleys Fired 41 | 7 21 13 Largest 2 | 2 2 2 Hottest 63 | 60 60 63 Shots Fired 82 | 14 42 26 Gun 81 | 14 42 25 Cannon . | . . . Launcher 1 | . . 1 Special . | . . . Kinetic 46 | 7 21 18 Thermal . | . . . Explosive 1 | . . 1 Electromagnetic 35 | 7 21 7 Robot Hit Streak 9 | 4 4 9 Robot Miss Streak 3 | 3 3 3 Penetration Max . | . . . Secondary Targets 1 | . . 1 Max Gunslinging Chain 1 | . . 1 Shots Hit Robots 51 | 8 26 17 Core Hits 29 | 8 15 6 Critical Kills . | . . . Critical Parts Destroyed . | . . . Critical Strikes 1 | 1 . . Corrupt 1 | 1 . . Melee Attacks . | . . . Impact . | . . . Slashing . | . . . Piercing . | . . . Sneak Attacks . | . . . Combat Hostiles . | . . . Follow-up Attacks . | . . . Damage Inflicted 670 | 141 268 261 Guns 593 | 85 268 240 Cannons . | . . . Explosions 77 | 56 . 21 Melee . | . . . Ramming . | . . . Kinetic 327 | 29 126 172 Thermal 56 | 56 . . Explosive 21 | . . 21 Electromagnetic 266 | 56 142 68 Impact . | . . . Slashing . | . . . Piercing . | . . . Highest Corruption . | . . . Average Corruption . | . . . Corruption Purged . | . . . Corruption Blocked . | . . . Overload Shots . | . . . Overflow Damage . | . . . Projectiles . | . . . Explosions . | . . . Melee . | . . . Knockbacks . | . . . Impact . | . . . Kinetic . | . . . Secondary . | . . . Self-Inflicted Damage 38 | 38 . . Shots 1 | 1 . . Rammed . | . . . Targets Rammed . | . . . Kicked . | . . . Crushed . | . . . Highest Temperature 121 | 32 78 121 Average Temperature 43 | 16 29 69 Received Heat Transfer 252 | . 57 195 Siege Activations . | . . . Robots Corrupted . | . . . Combat Hostiles . | . . . Parts Fried 1 | . . 1 Impact Corruptions . | . . . Robots Melted . | . . . Combat Hostiles . | . . . Parts Melted . | . . . Heat Transferred 50 | 50 . . Parts Sabotaged . | . . . Parts Stolen . | . . . Parts Stripped . | . . . Power Chain Reactions 1 | 1 . . Alert | -11 -10 -10 ------- Run | Yrd Mat Min Peak Influence 237 | 30 237 55 Initial 19 | . 19 7 Average 74 | 12 96 44 Maximum Alert Level 1 | . 1 . Low Security (%) 91 | 100 87 100 Level 1 8 | . 12 . Level 2 . | . . . Level 3 . | . . . Level 4 . | . . . Level 5 . | . . . High Security . | . . . Max Security . | . . . Squads Dispatched 2 | . 2 . Investigation . | . . . Extermination . | . . . Reinforcement 2 | . 2 . Assault . | . . . Garrison . | . . . Intercept . | . . . Searches Triggered . | . . . Construction Impeded . | . . . Haulers Reinforced . | . . . Active Scanning Responses . | . . . Cargo Convoy Interrupts . | . . . Stealth | -11 -10 -10 --------- Run | Yrd Mat Min Distress Signals 3 | . 3 . Communications Jammed . | . . . Distress Signals . | . . . Times Spotted 37 | . 21 16 Peak Tracking Total 13 | . 5 13 Tactical Retreats 1 | . 1 . Traps | -11 -10 -10 ------- Run | Yrd Mat Min Traps Triggered . | . . . Indirectly . | . . . Trap Hack Attempts . | . . . Triggered . | . . . Disarmed 4 | . 4 . Reprogrammed . | . . . Reused . | . . . Traps Extracted . | . . . Installed . | . . . Triggered . | . . . Machines | -11 -10 -10 ---------- Run | Yrd Mat Min Machines Disabled . | . . . Max in Single Turn . | . . . Machines Repaired . | . . . Machines Dismantled . | . . . Machines Sabotaged . | . . . Overloaded Fab Kills . | . . . Hacking | -11 -10 -10 --------- Run | Yrd Mat Min Machines Accessed 6 | . 6 . Terminals 5 | . 5 . Fabricators . | . . . Repair Stations . | . . . Recycling Units 1 | . 1 . Scanalyzers . | . . . Garrison Access . | . . . Total Hacks 20 | . 20 . Successful 8 | . 8 . Failed 12 | . 12 . Catastrophic 2 | . 2 . Database Lockouts . | . . . Manual 12 | . 12 . Terminals 19 | . 19 . Fabricators . | . . . Repair Stations . | . . . Recycling Units 1 | . 1 . Scanalyzers . | . . . Garrison Access . | . . . Terminal Hacks 5 | . 5 . Part Schematic 1 | . 1 . Prototype ID Bank 1 | . 1 . Branch Access Points 1 | . 1 . Disarm Traps 1 | . 1 . Hauler Manifests 1 | . 1 . Fabricator Hacks . | . . . Repair Station Hacks . | . . . Recycling Unit Hacks 1 | . 1 . Retrieve Components 1 | . 1 . Scanalyzer . | . . . Garrison Access Hacks . | . . . Unauthorized Hacks 2 | . 2 . Terminals 2 | . 2 . Botnet 2 | . 2 . Fabricators . | . . . Repair Stations . | . . . Recycling Units . | . . . Scanalyzers . | . . . Garrison Access . | . . . Data Cores Recovered . | . . . Used . | . . . Hacking Detections 5 | . 5 . Full Trace Events 1 | . 1 . Feedback Events . | . . . Feedback Blocked . | . . . Robot Schematics Acquired . | . . . Robots Built . | . . . Authchips . | . . . Time . | . . . Total Robot Build Rating . | . . . Part Schematics Acquired 1 | . 1 . Parts Built . | . . . Authchips . | . . . Time . | . . . Total Part Build Rating . | . . . Parts Repaired . | . . . Time . | . . . Parts Recycled . | . . . Recycled Matter . | . . . Retrieved Matter . | . . . Retrieved Components 2 | . 2 . Parts Scanalyzed . | . . . Part Schematics Acquired . | . . . Parts Damaged . | . . . Bothacking | -11 -10 -10 ------------ Run | Yrd Mat Min Used RIF Installer . | . . . Robots Hacked . | . . . Non-combat . | . . . Combat . | . . . Robot Hacks Applied . | . . . Relay Couplers Released . | . . . Fabnet Peak Effective % . | . . . Robots Rewired . | . . . Allies Hacked . | . . . Hacks Repelled . | . . . Allies | -11 -10 -10 -------- Run | Yrd Mat Min Total Allies . | . . . Largest Group . | . . . Highest-Rated Group . | . . . Highest-Rated Ally . | . . . Total Orders . | . . . Ally Attacks . | . . . Total Damage . | . . . Kills . | . . . Allies Corrupted . | . . . Allies Melted . | . . . Intel | -11 -10 -10 ------- Run | Yrd Mat Min Robot Analysis Total . | . . . Derelict Logs Recovered . | . . . Drone Launches . | . . . Drone Recoveries . | . . . Exploration | -11 -10 -10 ------------- Run | Yrd Mat Min Turns Passed 1446 | 171 933 342 Spaces Moved 885 | 105 624 156 Core 6 | 6 . . Treads . | . . . Legs 878 | 99 624 155 Wheels 1 | . . 1 Hover . | . . . Flight . | . . . Fastest Speed 50 | 50 120 115 Average Speed 141 | 120 132 188 Slowest Speed 190 | 190 190 190 Overloaded Moves . | . . . Propulsion Burnouts . | . . . Robots Hopped . | . . . Cave-ins Triggered . | . . . Exploration Rate (%) 46 | 4 83 53 Regions Visited 2 Branch Regions 1 Pre-discovered Areas . | . . . Known Exits Taken 1 | . 1 . Unknown Exits Taken 1 | 1 . . Scrap Searched 1 | . . 1 Spaces Dug . | . . . Terrain Destroyed 11 | 6 . 5 Melee . | . . . Projectile . | . . . AOE 11 | 6 . 5 Terrain Rammed . | . . . Walls Destroyed . | . . . Machines Disabled . | . . . Actions | -11 -10 -10 --------- Run | Yrd Mat Min Total 1007 | 132 698 177 Wait 36 | 8 27 1 Move 883 | 104 623 156 Hop . | . . . Pick Up 15 | 5 9 1 Fast Attach 8 | 7 1 . Attach 4 | . . 4 Detach 1 | . 1 . Swap 8 | 1 5 2 Drop 11 | . 11 . Fire 41 | 7 21 13 Melee . | . . . Ram . | . . . Kick . | . . . Crush . | . . . Escape Stasis . | . . . Rewire . | . . . Trap . | . . . Miscellaneous . | . . . Route ------- -11/Scrapyard -10/Materials (discovered 3 exits: [*Mat x2] / *Min) -10/Mines (discovered 1 exit: [*Mat]) History --------- Turn | Location | Event 26 | -11/Scrapyard | Discovered new exit (range 15) 172 | -11/Scrapyard | Entered Materials 305 | -10/Materials | Build established: Mutant 336 | -10/Materials | Discovered new exit (range 14) 481 | -10/Materials | Identified exit to Mines 930 | -10/Materials | Discovered new exit (range 16) 1105 | -10/Materials | Entered Mines 1114 | -10/Mines | Core integrity fell below 50% 1154 | -10/Mines | Met a Derelict bent on vengeance 1262 | -10/Mines | Discovered new exit (range 16) 1269 | -10/Mines | Received a Rocket Launcher from a helpful Derelict 1412 | -10/Mines | Assembled infested the area 1439 | -10/Mines | Core integrity fell below 20% 1447 | -10/Mines | Destroyed by D-53 Grenadier with Mini Grenade Launcher Last Messages --------------- 01430_ C-30 ARC bursts open, deploying its payload. 01430_ D-53 Grenadier unfolds itself. 01433_ as-64203 destroyed. 01433_ as-42710 destroyed. 01434_ as-60095 destroyed. 01435_ Med. Armor Plating destroyed. 01435_ as-07207 destroyed. 01435_ as-67551 destroyed. 01435_ as-47698 destroyed. 01437_ Grenade Launcher destroyed. 01438_ The unstable cave ceiling collapses. 01439_ as-77453 destroyed. 01440_ Aluminum Leg destroyed. 01442_ Ion Engine destroyed. 01442_ as-40563 destroyed. 01443_ K-01 Serf collects debris. 01444_ The unstable cave ceiling collapses. 01445_ Aluminum Leg destroyed. 01445_ as-53141 destroyed. 01447_ K-01 Serf collects debris. Map ----- +----------------------------------------------------+ | | | | | | | | | | | | | | | | | | | | | | | | | | | | | | | | | ?????????????????????????????????????????????????? | | ?????????????????????????????????????????????????? | | ?????????????????????????????????????????????????? | | ?????????????????????????####????????????????????? | | ???????????????????????## ##???????????????????? | | ??????????????????????## ######## #?????????? | | ???????? ???????????### #?????????? | | ?????? ?????????## #??????????? | | ??????# ???####?## k #????????????? | | ?????## ??## ### @ #?????????????? | | ????## ### # #??????????????? | | ???## ## ## #??????????????? | | ???# ## #??? ##??????????????? | | ??## ## # % #????????????????????? | | ?## # # #????????????????????? | | ## a##???????????????????? | | # " ###?????????????????? | | "%" dd ##????????????????? | | ?# " a #### #???????????? | | ??# # #???????????? | | ?????# ## ## ##### #???????????? | | ?????????## ######### #???????????????? | | ???######## ###???????# #???????????????? | | #?????????## #???????????? | | ???######## ##?????????## #???????????? | | ?????????## ##??????????## # ###???????????? | | ?????????# #????????????######?#?????????????? | | ?????????# #?????????????????????????????????? | | ????????## #?????????????????????????????????? | | ???????## #?????????????????????????????????? | | ??# #### #?????????????????????????????????? | | ??# ##???????????????###??????????????? | | ??##### ###????????????## ##?????????????? | | ??????# ####?????????# ##????????????? | +----------------------------------------------------+ Best States ------------- Heat Dissipation 25 Energy Generation 14 Energy Capacity 250 Matter Stores 300 Matter Capacity 300 Sight Range 16 Terrain Scan Range 16 Terrain Scan Density 10 Armor Coverage 225 Evasion (%) 55 Item Schematics ----------------- Med. Storage Unit | -10/Materials | Hacked Robot Schematics ------------------ None Fabricated ------------ Nothing Alien Tech Used ----------------- None Achievements -------------- None Challenges ------------ None Game ------ Seed HardlightMappingLeg Manual? 0 Play Time 00:13:10 Cumulative 105.1 hours Start 2024.06.21 @ 12:51:11 End 2024.06.21 @ 13:02:54 Sessions 1 Manual Loads 0 Difficulty Rogue Special Mode None Game No. 78 Rogue 78 Adventurer 0 Explorer 0 Win Type - Total 0 Types 0/0/0/0/0/0/0/0/0 Lore% 37 Gallery% 48 Achievement% 36 Wizard Run 0 Options --------- Layout 2 ASCII 1 Keyboard 1 Movement Arrows Keybinds 0 Fullscreen 0 Font 20/Terminus Map View 59x48 Zoom Use 0% Tactical HUD 1 Map Filters NONE Filters NONE Steam 1 RUN: 92db3734-167a-4134-a4f4-e35e6af8a05c